bitfinex/quotes_ETHUSD_20250517
["timestamp","ask_amount","ask_price","bid_price","bid_amount"]
[1747452806586,4.02722403,2483.1,2483.0,7.913]
[1747452810898,11.93788465,2483.4,2483.0,8.7194]
[1747452811092,4.82062437,2483.9,2483.2,4.02693883]
[1747452811412,4.02581099,2484.0,2483.4,4.83312601]
[1747452811730,4.02581099,2484.0,2483.5,11.94043662]
[1747452811926,4.02581099,2484.0,2483.5,13.61780462]
[1747452812288,0.7946,2484.4,2483.5,9.591368]
[1747452812642,8.7046,2484.4,2483.7,0.8064]
[1747452812826,4.02584837,2484.0,2483.8,17.388]
[1747452813023,4.0256837,2484.1,2483.8,17.388]
[1747452814901,4.0257873,2484.0,2483.8,17.388]
[1747452815535,0.7707,2484.7,2483.8,19.19981864]
[1747452815743,8.6807,2484.7,2483.9,0.04025414]
[1747452815905,8.6807,2484.7,2484.0,12.74400228]
[1747452815906,4.02494477,2484.6,2484.0,12.74400228]
[1747452816225,4.79488865,2485.0,2484.0,12.74400228]
[1747452816226,4.02407102,2485.1,2484.6,4.02477988]
[1747452816534,4.02446877,2484.8,2484.7,25.301]
[1747452819344,0.4794771,2485.1,2484.8,0.8043]
[1747452819345,4.02413523,2485.1,2484.8,0.8043]
[1747452820441,4.02446877,2484.8,2484.7,17.387]
[1747452820622,4.02446877,2484.8,2484.7,25.295]
[1747452823348,4.02430802,2484.9,2484.7,25.295]
[1747452823349,4.02440135,2484.9,2484.7,25.295]
[1747452824248,4.02421437,2485.0,2484.7,26.972368]
[1747452824648,4.02406555,2485.1,2484.7,26.972368]
[1747452824848,4.02425637,2485.0,2484.7,26.972368]
[1747452825416,4.02425637,2485.0,2484.8,0.8292]
[1747452825615,4.02430681,2484.9,2484.8,0.8292]
[1747452825874,4.02446877,2484.8,2484.7,17.387]
[1747452826167,4.02446877,2484.8,2484.7,25.293]
[1747452826555,4.02446877,2484.8,2484.7,17.387]
[1747452826721,4.02446877,2484.8,2484.7,25.293]
[1747452827126,4.90539633,2484.8,2484.7,25.293]
[1747452828580,5.66589633,2484.8,2484.7,17.387]
[1747452830340,4.78496877,2484.8,2484.7,17.387]
[1747452831965,1.06224549,2485.3,2484.7,18.199]
[1747452832140,4.02412422,2485.1,2484.7,18.199]
[1747452832346,4.02382102,2485.2,2484.7,18.199]
[1747452832664,4.78165222,2485.5,2484.9,4.02419512]
[1747452832878,4.02350444,2485.4,2484.9,5.38623289]
[1747452833644,4.02350444,2485.4,2484.9,1.362]
[1747452833843,4.02350444,2485.4,2485.0,0.79968895]
[1747452834044,4.02350444,2485.4,2485.1,7.906]
[1747452835483,4.02366655,2485.3,2485.1,7.906]
[1747452835984,4.02357258,2485.4,2485.1,7.906]
[1747452836499,4.02367538,2485.3,2485.1,7.906]
[1747452836683,4.02367538,2485.3,2485.1,8.9127689]
[1747452837081,4.02414339,2485.1,2484.9,0.812]
[1747452837270,4.02414339,2485.1,2485.0,7.905]
[1747452838272,14.87166275,2485.8,2485.0,7.905]
[1747452838273,4.02358949,2485.4,2485.0,7.905]
[1747452838450,4.02358949,2485.4,2485.1,1.27412592]
[1747452839561,7.902,2485.7,2485.1,1.27412592]
[1747452839752,4.02375702,2485.3,2485.1,1.27412592]
[1747452840154,7.902,2485.7,2485.0,7.905]
[1747452840386,2.94580739,2485.8,2485.0,7.905]
[1747452840548,4.02376692,2485.3,2485.0,7.905]
[1747452840769,4.02324809,2485.6,2485.0,11.92907576]
[1747452840979,4.02342796,2485.5,2485.0,11.92907576]
[1747452841180,4.02342796,2485.5,2485.1,1.27410758]
[1747452841452,4.02342796,2485.5,2485.2,0.824]
[1747452842289,8.6602,2485.8,2485.2,0.824]
[1747452842493,8.6602,2485.8,2485.1,1.27410758]
[1747452842494,4.02301162,2485.7,2485.1,1.27410758]
[1747452842683,4.02430681,2484.9,2484.7,17.387]
[1747452842903,4.02430681,2484.9,2484.8,7.904]
[1747452843103,4.02422594,2485.0,2484.8,7.904]
[1747452843407,4.02430681,2484.9,2484.8,7.904]
[1747452843606,4.02430681,2484.9,2484.7,17.387]
[1747452843607,4.02446877,2484.8,2484.7,17.387]
[1747452843782,4.02479272,2484.6,2484.5,7.904]
[1747452844000,4.79055471,2484.5,2484.4,7.904]
[1747452844312,4.02576489,2484.0,2483.9,17.376]
[1747452844612,4.02576489,2484.0,2483.9,25.28]
[1747452844817,4.02568042,2484.1,2483.9,25.28]
[1747452844994,4.02568042,2484.1,2483.9,27.8904]
[1747452845195,4.7906723,2484.5,2483.9,27.8904]
[1747452845404,4.02516635,2484.4,2483.9,27.8904]
[1747452845614,4.02545436,2484.2,2483.9,27.8904]
[1747452846418,4.02535845,2484.3,2483.9,27.8904]
[1747452846606,4.02535845,2484.3,2484.0,0.87878664]
[1747452846915,4.02503854,2484.5,2484.0,0.87878664]
[1747452847115,4.02430293,2485.0,2484.4,4.02507113]
[1747452847416,4.02430293,2485.0,2484.5,7.905]
[1747452847417,4.02448345,2484.8,2484.5,7.905]
[1747452847717,4.02465024,2484.7,2484.5,9.56584]
[1747452848217,2.18760739,2485.1,2484.3,0.8024]
[1747452848394,4.02484497,2484.6,2484.4,7.905]
[1747452848911,4.02484497,2484.6,2484.5,7.905]
[1747452849219,4.02437957,2484.9,2484.5,7.905]
[1747452849415,4.02479272,2484.6,2484.5,7.905]
[1747452849919,4.02501813,2484.5,2484.0,1.64398664]
[1747452850083,4.02550635,2484.2,2484.1,7.901]
[1747452850278,4.02533123,2484.3,2484.1,7.901]
[1747452850511,4.02533123,2484.3,2484.0,1.64398664]
[1747452850701,4.02533123,2484.3,2484.2,7.901]
[1747452852021,4.02520229,2484.4,2484.2,7.901]
[1747452852325,4.02527875,2484.3,2484.2,7.901]
[1747452853123,4.02544446,2484.2,2483.9,17.376]
[1747452853284,4.02544446,2484.2,2484.0,7.901]
[1747452853780,4.02533175,2484.3,2484.0,7.901]
[1747452854492,8.655,2484.7,2484.1,7.902]
[1747452855410,4.02544078,2484.2,2484.1,7.902]
[1747452855817,0.7946,2483.8,2482.7,0.21000738]
[1747452856118,0.7946,2483.8,2482.9,0.7951]
[1747452856119,4.02738622,2483.0,2482.9,0.7951]
[1747452856326,4.02673753,2483.4,2482.9,0.7951]
[1747452856484,0.7946,2483.8,2482.9,0.7951]
[1747452856687,4.0265046,2483.6,2483.2,0.55]
[1747452856887,4.0265046,2483.6,2483.3,7.902]
[1747452857299,0.88473767,2483.6,2483.4,7.902]
[1747452857494,4.02706941,2483.2,2482.9,0.7951]
[1747452857713,4.02706941,2483.2,2483.0,7.902]
[1747452858621,4.02678661,2483.4,2483.0,7.902]
[1747452858811,4.02704443,2483.3,2483.0,7.902]
[1747452859329,4.02681211,2483.4,2483.0,7.902]
[1747452859515,4.02665932,2483.5,2483.0,12.79908433]
[1747452859893,4.02676818,2483.4,2483.0,8.77171]
[1747452861201,0.7946,2483.8,2483.1,4.02720282]
[1747452861407,4.02633082,2483.7,2483.2,4.06725397]
[1747452861613,4.02633082,2483.7,2483.3,0.80944568]
[1747452862733,0.7946,2484.4,2483.4,0.7951]
[1747452862900,8.6966,2484.4,2483.6,4.02630732]
[1747452863094,4.02585743,2484.0,2483.7,17.385]
[1747452863332,4.02585743,2484.0,2483.7,25.289]
[1747452864008,4.02566594,2484.1,2483.7,25.289]
[1747452864833,2.98220739,2484.4,2483.7,27.90847664]
[1747452865133,4.02524994,2484.4,2483.8,4.82110876]
[1747452865297,4.02524994,2484.4,2483.9,4.02587513]
[1747452866292,0.7946,2484.8,2484.0,0.04025401]
[1747452866530,0.7946,2484.8,2484.3,4.02517729]
[1747452866721,4.02461362,2484.8,2484.4,7.903]
[1747452866925,7.901,2485.0,2484.5,4.06507635]
[1747452867106,0.7946,2485.1,2484.4,11.92809483]
[1747452867306,12.71961385,2485.1,2484.4,11.92809483]
[1747452867628,4.02414486,2485.0,2484.4,11.92809483]
[1747452867823,4.0243453,2484.9,2484.4,11.92809483]
[1747452868543,4.02414486,2485.0,2484.1,0.7951]
[1747452868698,4.81955471,2484.5,2484.4,7.903]
[1747452869032,4.02531396,2484.3,2483.8,0.7951]
[1747452869199,4.02558251,2484.2,2483.9,7.903]
[1747452869537,4.02608905,2483.8,2483.7,17.385]
[1747452869738,4.02608905,2483.8,2483.7,25.288]
[1747452870613,4.02527875,2484.3,2483.8,4.7947648]
[1747452870614,4.0253498,2484.3,2483.8,4.7947648]
[1747452870813,4.0252996,2484.3,2483.8,7.80304128]
[1747452871226,4.81962537,2484.5,2483.9,4.02585977]
[1747452871445,8.6956,2484.5,2484.0,4.02572834]
[1747452871743,12.7206225,2484.5,2484.0,4.02572834]
[1747452871905,12.7206225,2484.5,2483.9,4.02585308]
[1747452872108,12.7206225,2484.5,2484.0,0.48091016]
[1747452872354,4.02511858,2484.4,2484.0,0.48091016]
[1747452872646,4.02519369,2484.4,2484.0,0.48091016]
[1747452872862,4.02528301,2484.3,2483.8,0.7687]
[1747452873154,4.02555412,2484.2,2483.8,0.7687]
[1747452873532,4.02599149,2483.9,2483.7,25.288]
[1747452873855,4.02601077,2483.9,2483.7,25.288]
[1747452877061,4.02583751,2484.0,2483.7,25.288]
[1747452877552,4.85843891,2484.3,2483.7,28.2963207]
[1747452877758,4.02487431,2484.6,2484.0,4.02560822]
[1747452877971,4.0247262,2484.7,2484.2,4.02534873]
[1747452878186,4.0247262,2484.7,2484.3,7.903]
[1747452878540,4.02424071,2485.0,2484.5,0.784]
[1747452878744,4.02449202,2484.8,2484.6,17.384]
[1747452879747,4.02439093,2484.9,2484.6,17.384]
[1747452881893,8.6776,2485.2,2484.6,17.384]
[1747452881894,0.7776,2485.2,2484.6,17.384]
[1747452882183,4.02443701,2484.9,2484.6,17.86486594]
[1747452882388,4.02463074,2484.7,2484.6,17.384]
[1747452882570,4.02463074,2484.7,2484.6,25.283]
[1747452884989,4.81733074,2484.7,2484.6,25.283]
[1747452885279,12.71533074,2484.7,2484.6,25.283]
[1747452885483,4.0258085,2484.0,2483.9,17.381]
[1747452885779,4.0258085,2484.0,2483.9,25.28]
[1747452885970,4.02565166,2484.1,2483.9,25.28]
[1747452886487,4.02552497,2484.2,2483.9,25.28]
[1747452887247,4.02536399,2484.3,2483.9,25.28]
[1747452887747,4.02547206,2484.2,2483.9,25.28]
[1747452889057,0.7927,2484.7,2483.9,32.23653112]
[1747452889258,4.85313022,2485.0,2484.5,4.02482376]
[1747452889454,4.02444099,2484.9,2484.6,7.899]
[1747452889686,4.85313022,2485.0,2484.6,7.899]
[1747452889687,0.8289,2485.3,2484.7,0.8094]
[1747452889888,4.8521005,2485.6,2484.8,21.44670866]
[1747452890063,4.02343192,2485.5,2485.0,4.02413761]
[1747452890267,4.02334739,2485.5,2485.1,7.899]
[1747452892898,4.02301162,2485.7,2484.8,17.382]
[1747452893101,4.02365911,2485.3,2485.2,7.898]
[1747452894974,4.02365911,2485.3,2484.8,17.382]
[1747452895271,4.02186406,2486.5,2484.9,11.92117341]
[1747452895473,4.02327352,2485.6,2485.0,4.824679]
[1747452895668,4.02327352,2485.6,2485.1,4.02396642]
[1747452895865,4.02327352,2485.6,2485.2,0.48246054]
[1747452896113,4.02333837,2485.5,2485.2,0.48246054]
[1747452896517,4.02349883,2485.4,2485.2,0.48246054]
[1747452896805,4.02349883,2485.4,2485.0,0.7604]
[1747452897010,4.02376662,2485.3,2485.0,0.7604]
[1747452897169,7.896,2485.8,2485.1,7.897]
[1747452897368,4.02382102,2485.2,2485.1,7.897]
[1747452898171,4.02430681,2484.9,2484.8,17.382]
[1747452898409,4.02430681,2484.9,2484.8,25.279]
[1747452899766,4.0240041,2485.1,2484.8,27.8069]
[1747452899966,0.8256,2485.3,2484.8,27.8069]
[1747452900211,4.02430681,2484.9,2484.8,25.279]
[1747452900433,4.02406013,2485.1,2484.8,25.279]
[1747452900591,4.02399001,2485.1,2484.8,25.279]
[1747452900793,4.0241645,2485.0,2484.8,25.279]
[1747452901111,4.02430681,2484.9,2484.8,25.279]
[1747452901420,4.82915394,2484.9,2484.8,25.279]
[1747452902204,4.02389672,2485.2,2484.8,25.279]
[1747452902205,4.02382102,2485.2,2484.8,25.279]
[1747452902731,7.895,2485.4,2484.8,25.279]
[1747452902965,4.0240914,2485.1,2484.8,25.279]
[1747452903164,4.02430681,2484.9,2484.8,25.279]
[1747452903448,4.90713112,2484.9,2484.8,25.279]
[1747452903768,4.02430681,2484.9,2484.8,25.279]
[1747452904058,4.80400681,2484.9,2484.8,25.279]
[1747452905459,4.02415234,2485.0,2484.8,25.279]
[1747452905659,4.02403418,2485.1,2484.8,25.279]
[1747452905863,4.02369477,2485.3,2484.8,25.279]
[1747452905864,4.0239064,2485.2,2484.8,25.279]
[1747452906067,4.02430681,2484.9,2484.8,25.279]
[1747452906262,4.02423457,2485.0,2484.8,25.279]
[1747452906546,4.02430681,2484.9,2484.8,25.279]
[1747452907168,0.7853,2485.5,2484.8,27.88821]
[1747452907466,4.02370816,2485.3,2484.8,27.88821]
[1747452907748,4.02318756,2485.6,2484.8,17.382]
[1747452907911,4.02430681,2484.9,2484.8,17.382]
[1747452908113,4.02430681,2484.9,2484.8,25.279]
[1747452909656,0.7853,2484.7,2483.8,17.378]
[1747452909951,4.81090283,2484.1,2484.0,7.897]
[1747452910142,12.70490283,2484.1,2484.0,7.897]
[1747452910341,4.81090283,2484.1,2484.0,7.897]
[1747452910557,12.70490283,2484.1,2484.0,7.897]
[1747452911570,13.00215662,2484.1,2484.0,7.897]
[1747452911868,14.93138002,2484.1,2484.0,7.897]
[1747452912070,6.74012623,2484.1,2484.0,7.897]
[1747452912232,14.63412623,2484.1,2484.0,7.897]
[1747452912968,4.02666125,2483.5,2483.1,17.378]
[1747452913168,4.02666125,2483.5,2483.2,7.896]
[1747452913468,4.02689968,2483.3,2483.2,7.896]
[1747452913772,4.0268051,2483.4,2483.2,7.896]
[1747452914265,4.02689968,2483.3,2483.2,7.896]
[1747452914929,4.02669075,2483.5,2483.2,7.896]
[1747452915131,4.02650166,2483.6,2483.2,7.896]
[1747452915336,4.82809643,2484.0,2483.2,7.896]
[1747452915337,0.8022,2484.0,2483.3,0.7595]
[1747452915566,4.02625347,2483.7,2483.4,0.86555]
[1747452915965,4.02625115,2483.7,2483.4,0.86555]
[1747452917500,7.897,2484.0,2483.3,0.7595]
[1747452917654,4.026375,2483.7,2483.5,7.897]
[1747452918065,4.02641327,2483.6,2483.5,7.897]
[1747452918473,4.02630547,2483.7,2483.5,7.897]
[1747452918668,0.8022,2484.5,2483.6,0.7595]
[1747452918882,4.02539062,2484.3,2483.7,4.89179154]
[1747452919088,4.02511672,2484.4,2483.7,4.89179154]
[1747452919303,4.0253597,2484.3,2483.7,4.89179154]
[1747452919498,4.02547637,2484.2,2483.7,4.89179154]
[1747452919704,4.02547637,2484.2,2483.8,0.56512915]
[1747452921281,11.92195599,2484.5,2483.9,4.84713857]
[1747452921591,11.92208043,2484.5,2484.0,25.281]
[1747452921802,11.91430037,2484.5,2484.0,25.281]
[1747452921985,4.02513286,2484.4,2484.1,2.05840749]
[1747452922380,3.0009479,2484.8,2484.1,2.05840749]
[1747452922585,3.0009479,2484.8,2484.3,0.8213]
[1747452922586,4.02450036,2484.8,2484.3,0.8213]
[1747452922807,7.897,2485.0,2484.3,0.8213]
[1747452923012,4.02492461,2484.6,2484.3,0.8213]
[1747452923229,4.02492461,2484.6,2484.3,1.10927075]
[1747452925081,4.02511672,2484.4,2484.3,0.28797075]
[1747452925287,4.02511672,2484.4,2484.3,7.897]
[1747452925799,11.92125729,2485.0,2484.3,7.897]
[1747452926113,7.897,2485.0,2484.3,7.897]
[1747452926283,4.02511672,2484.4,2484.3,7.897]
[1747452926732,4.83572358,2485.1,2484.3,7.897]
[1747452926878,4.02462314,2484.8,2484.4,0.7897]
[1747452927283,4.02365911,2485.3,2484.5,0.7675]
[1747452927502,4.02443319,2484.9,2484.5,0.7675]
[1747452928091,4.02443319,2484.9,2484.6,7.896]
[1747452928938,4.0247289,2484.7,2484.5,0.7675]
[1747452929086,4.02454835,2484.8,2484.6,7.896]
[1747452929290,4.02444212,2484.9,2484.6,7.896]
[1747452929694,4.02457378,2484.8,2484.7,7.896]
[1747452930009,4.02435391,2484.9,2484.7,7.896]
[1747452930590,4.02435391,2484.9,2484.7,8.6856]
[1747452930796,4.02435391,2484.9,2484.7,9.5006]
[1747452931006,4.02398923,2485.1,2484.7,9.5006]
[1747452931203,4.02350466,2485.4,2484.7,9.5006]
[1747452931403,4.02430532,2485.0,2484.7,8.711]
[1747452932226,4.02430532,2485.0,2484.7,0.815]
[1747452932392,4.02430532,2485.0,2484.8,7.896]
[1747452932593,4.02430532,2485.0,2484.9,17.381]
[1747452932807,4.02430532,2485.0,2484.9,25.277]
[1747452933126,4.02430532,2485.0,2484.9,17.381]
[1747452933332,4.82913958,2485.0,2484.9,25.276]
[1747452933825,4.02430532,2485.0,2484.9,25.276]
[1747452936018,11.91930532,2485.0,2484.9,25.276]
[1747452936416,4.02430532,2485.0,2484.9,25.276]
[1747452940661,4.02430532,2485.0,2484.9,17.381]
[1747452940821,4.02430532,2485.0,2484.9,25.276]
[1747452941009,5.92023175,2485.0,2484.9,25.276]
[1747452941204,6.70313175,2485.0,2484.9,17.381]
[1747452941502,6.70313175,2485.0,2484.9,25.276]
[1747452942342,6.70313175,2485.0,2484.9,17.381]
[1747452942549,4.02560283,2484.1,2484.0,17.38]
[1747452942842,4.02560283,2484.1,2484.0,25.275]
[1747452943040,4.02553073,2484.2,2484.0,25.275]
[1747452943408,4.02530352,2484.3,2484.0,25.275]
[1747452943608,4.02503369,2484.5,2484.1,0.7914]
[1747452943826,4.02503369,2484.5,2484.2,3.00921375]
[1747452944549,4.02514507,2484.4,2484.2,3.00921375]
[1747452944847,4.01872589,2484.4,2484.2,3.00921375]
[1747452945924,4.02488023,2484.6,2484.2,3.00921375]
[1747452946637,4.02527875,2484.3,2484.1,0.7914]
[1747452946818,4.02560283,2484.1,2484.0,25.275]
[1747452947017,4.02560283,2484.1,2484.0,17.38]
[1747452947338,4.02560283,2484.1,2484.0,25.275]
[1747452947543,4.90899757,2484.1,2484.0,25.275]
[1747452948955,7.09834547,2484.1,2484.0,17.38]
[1747452949113,7.88124547,2484.1,2484.0,17.38]
[1747452950759,8.18174539,2484.1,2484.0,17.38]
[1747452953786,4.02576489,2484.0,2483.9,7.896]
[1747452953950,6.43856038,2484.0,2483.9,7.896]
[1747452955573,4.02576489,2484.0,2483.9,7.896]
[1747452956878,4.02376489,2484.0,2483.9,7.896]
[1747452958074,0.8289,2484.5,2483.9,7.896]
[1747452958236,4.02561392,2484.1,2483.9,7.896]
[1747452958436,4.02568483,2484.1,2483.9,7.896]
[1747452958638,4.02568483,2484.1,2483.9,8.76174]
[1747452959472,4.02576489,2484.0,2483.9,8.76174]
[1747452960573,4.02592696,2483.9,2483.8,0.7614]
[1747452960747,4.02592696,2483.9,2483.8,7.897]
[1747452961944,4.02584801,2484.0,2483.8,7.897]
[1747452962144,4.02592696,2483.9,2483.8,7.897]
[1747452962989,4.02578482,2484.0,2483.8,8.6867]
[1747452963176,14.11037826,2484.5,2483.9,0.7572]
[1747452963340,4.02576489,2484.0,2483.9,0.7572]
[1747452965076,4.02625115,2483.7,2483.6,0.7572]
[1747452965277,4.02625115,2483.7,2483.6,7.897]
[1747452967651,4.02005412,2483.7,2483.6,7.897]
[1747452968540,4.02657539,2483.5,2483.4,0.7572]
[1747452968742,4.02657539,2483.5,2483.4,8.6542]
[1747452969576,4.02650138,2483.6,2483.4,7.897]
[1747452969743,4.02657539,2483.5,2483.4,7.897]
[1747452970950,4.02619038,2483.8,2483.4,10.50523]
[1747452971550,4.0264843,2483.6,2483.4,10.50523]
[1747452972890,4.02619038,2483.8,2483.4,10.50523]
[1747452973061,4.02587687,2484.0,2483.6,4.02641051]
[1747452973395,4.02587687,2484.0,2483.7,0.52281593]
[1747452973889,4.02568575,2484.1,2483.8,0.7589]
[1747452974193,4.02577193,2484.0,2483.9,7.895]
[1747452974391,4.02577193,2484.0,2483.7,0.52281593]
[1747452974392,4.02592696,2483.9,2483.7,0.48255713]
[1747452974691,4.02592696,2483.9,2483.8,7.895]
[1747452974891,4.0258188,2484.0,2483.4,0.7589]
[1747452975094,4.02650988,2483.6,2483.5,7.895]
[1747452975994,4.02633144,2483.7,2483.5,7.895]
[1747452976289,4.02626651,2483.7,2483.5,7.895]
[1747452976917,7.894,2484.1,2483.5,10.49869]
[1747452977190,4.02572431,2484.1,2483.6,0.8108]
[1747452977488,4.02572431,2484.1,2483.6,4.83720273]
[1747452978495,4.02577287,2484.0,2483.6,0.8108]
[1747452978790,4.02577287,2484.0,2483.7,0.88549664]
[1747452978955,4.02595607,2483.9,2483.7,0.88549664]
[1747452979150,4.02608905,2483.8,2483.6,0.8108]
[1747452979364,4.02614578,2483.8,2483.6,0.8108]
[1747452979979,4.02595589,2483.9,2483.6,0.8108]
[1747452980183,4.02612901,2483.8,2483.6,0.8108]
[1747452980388,4.02559093,2484.2,2483.6,0.8108]
[1747452980558,4.02559093,2484.2,2483.7,0.87058]
[1747452981301,4.02560283,2484.1,2483.7,0.87058]
[1747452981660,7.894,2484.8,2483.8,4.82600986]
[1747452981859,0.86834,2484.7,2483.8,6.19566885]
[1747452982609,4.0253508,2484.3,2483.8,6.19566885]
[1747452982761,4.0253508,2484.3,2483.8,14.08866885]
[1747452983068,4.0253508,2484.3,2483.8,14.04841154]
[1747452983406,4.0253508,2484.3,2483.9,0.04025467]
[1747452983612,4.0253508,2484.3,2484.0,7.895]
[1747452983896,4.02544708,2484.2,2484.0,7.895]
[1747452984112,4.02544708,2484.2,2483.9,1.24894765]
[1747452984113,4.02544708,2484.2,2484.1,7.894]
[1747452985175,4.02536317,2484.3,2484.1,7.894]
[1747452985484,4.02536317,2484.3,2484.2,17.384]
[1747452988006,4.02536317,2484.3,2484.2,25.278]
[1747452988374,4.02536317,2484.3,2484.2,17.384]
[1747452988572,4.02536317,2484.3,2484.2,25.278]
[1747452990706,4.01839263,2484.3,2484.2,25.278]
[1747452991002,4.02527875,2484.3,2484.2,25.278]
[1747452993510,4.02485198,2484.6,2484.3,0.7874]
[1747452993717,4.02463074,2484.7,2484.3,0.7874]
[1747452994062,0.7892,2485.0,2484.3,3.79648271]
[1747452994313,4.02457606,2484.8,2484.3,7.82174652]
[1747452994496,4.02457606,2484.8,2484.4,4.02509842]
[1747452994813,4.02457606,2484.8,2484.4,4.06534476]
[1747452995024,4.02457606,2484.8,2484.5,0.48010393]
[1747452995543,4.02463905,2484.7,2484.3,0.7874]
[1747452995688,4.02463905,2484.7,2484.3,4.81267252]
[1747452997524,4.02449363,2484.8,2484.3,4.81267252]
[1747452997725,0.828,2485.5,2484.5,4.79611897]
[1747452997879,4.0235751,2485.4,2484.9,4.02424542]
[1747452998083,4.02341825,2485.5,2485.0,11.91714399]
[1747452998302,4.02341825,2485.5,2485.2,0.7712]
[1747452998726,4.02301621,2485.7,2485.2,4.7949711]
[1747452999020,4.02301621,2485.7,2485.2,4.79501224]
[1747452999224,4.02301621,2485.7,2485.2,0.7712]
[1747452999527,4.02318834,2485.6,2485.2,0.8114342]
[1747452999882,4.02284978,2485.8,2485.2,7.78975466]
[1747453000080,4.02302121,2485.7,2485.2,7.78975466]
[1747453000987,4.02291183,2485.8,2485.3,4.02365671]
[1747453001323,4.0226904,2485.9,2485.5,0.815]
[1747453001534,4.022605,2486.0,2485.6,7.892]
[1747453001739,4.02269319,2485.9,2485.6,7.892]
[1747453002488,4.02246167,2486.1,2485.6,8.4266119]
[1747453002731,4.02254468,2486.0,2485.6,8.4266119]
[1747453004549,4.78840002,2486.3,2485.6,8.4266119]
[1747453004853,4.02267376,2486.0,2485.6,8.4266119]
[1747453005383,4.02269221,2485.9,2485.6,8.4266119]
[1747453005674,4.02269221,2485.9,2485.7,1.32649153]
[1747453007129,4.02260212,2486.0,2485.7,1.32649153]
[1747453007427,4.02151722,2486.7,2485.8,0.590225]
[1747453007598,4.02151722,2486.7,2486.2,4.02206738]
[1747453007784,4.02160046,2486.6,2486.3,25.259]
[1747453007989,4.02160046,2486.6,2486.4,0.8236]
[1747453008204,4.02135136,2486.8,2486.4,0.8236]
[1747453008205,4.02127926,2486.8,2486.4,0.8236]
[1747453008405,4.82277022,2487.0,2486.4,0.8236]
[1747453008406,4.02096538,2487.0,2486.4,0.8236]
[1747453008756,4.0206139,2487.2,2486.7,4.02125812]
[1747453008921,4.0206139,2487.2,2486.6,4.84513518]
[1747453008922,4.02006261,2487.6,2486.9,4.02104423]
[1747453009110,4.02006261,2487.6,2486.8,8.66648295]
[1747453009111,4.02023804,2487.5,2487.0,4.8847092]
[1747453009312,4.02053048,2487.3,2487.0,0.8236]
[1747453009913,4.02004321,2487.6,2487.0,4.84442688]
[1747453010433,0.66666667,2487.7,2487.3,0.8236]
[1747453010634,0.66666667,2487.7,2487.4,25.259]
[1747453010837,4.02000255,2487.6,2487.4,25.259]
[1747453011324,4.68650936,2487.7,2487.4,25.259]
[1747453011522,0.66666667,2487.7,2487.4,25.259]
[1747453012163,4.68658416,2487.7,2487.5,7.883]
[1747453012367,4.01993889,2487.6,2487.5,7.883]
[1747453012656,4.01993889,2487.6,2487.4,17.374]
[1747453012854,4.0201005,2487.5,2487.4,17.374]
[1747453013293,5.69257111,2487.5,2487.4,17.374]
[1747453013493,7.87609522,2487.5,2487.4,25.257]
[1747453014763,7.87609522,2487.5,2487.4,17.374]
[1747453015278,7.87609522,2487.5,2487.4,25.255]
[1747453015660,4.81607671,2487.5,2487.4,25.255]
[1747453015866,4.01427671,2487.5,2487.4,25.255]
[1747453018087,4.01427671,2487.5,2487.4,17.374]
[1747453018287,4.01427671,2487.5,2487.4,25.254]
[1747453020389,4.81607671,2487.5,2487.4,25.254]
[1747453020569,5.98527973,2487.5,2487.4,25.254]
[1747453021506,4.02171727,2486.5,2486.4,17.363]
[1747453021809,4.02171727,2486.5,2486.4,25.243]
[1747453021959,4.02171727,2486.5,2486.4,17.363]
[1747453022163,4.02171727,2486.5,2486.4,25.243]
[1747453022164,4.84111727,2486.5,2486.4,25.243]
[1747453022686,4.02171727,2486.5,2486.4,25.243]
[1747453023469,4.02158052,2486.6,2486.4,27.7673]
[1747453023672,4.02158052,2486.6,2486.4,28.5493]
[1747453023874,4.0210704,2486.9,2486.4,28.5493]
[1747453024159,4.02126325,2486.8,2486.4,28.5493]
[1747453024361,4.02126325,2486.8,2486.4,20.6693]
[1747453024572,4.02126325,2486.8,2486.5,8.84488664]
[1747453025262,4.02094119,2487.0,2486.5,8.84488664]
[1747453025494,0.8194,2487.0,2486.4,17.363]
[1747453025791,2.1893479,2487.1,2486.4,17.363]
[1747453025792,7.03046517,2486.5,2486.4,17.363]
[1747453025954,14.94346517,2486.5,2486.4,17.363]
[1747453026159,7.03046517,2486.5,2486.4,17.363]
[1747453026658,8.13566954,2486.5,2486.4,25.243]
[1747453026882,8.13566954,2486.5,2486.4,7.88]
[1747453027271,16.04966954,2486.5,2486.4,7.88]
[1747453027586,14.94446517,2486.5,2486.4,7.88]
[1747453027794,14.94646517,2486.5,2486.4,7.88]
[1747453028383,4.02171727,2486.5,2486.4,7.88]
[1747453029506,4.02284978,2485.8,2485.7,17.364]
[1747453029662,4.02284978,2485.8,2485.7,25.245]
[1747453029865,4.02271216,2485.9,2485.7,27.84561]
[1747453030192,4.02259368,2486.0,2485.7,27.84561]
[1747453030392,4.02226417,2486.2,2485.7,27.84561]
[1747453030603,4.02240161,2486.1,2485.7,27.84561]
[1747453030818,4.02284978,2485.8,2485.7,19.96461]
[1747453031019,4.02284978,2485.8,2485.7,25.245]
[1747453031681,4.02284978,2485.8,2485.7,17.364]
[1747453031882,4.02414486,2485.0,2484.9,17.367]
[1747453032124,4.0240574,2485.1,2484.9,25.249]
[1747453032424,4.0239084,2485.2,2484.9,27.7739]
[1747453032624,4.02400282,2485.1,2484.9,27.7739]
[1747453032998,4.02414486,2485.0,2484.9,27.7739]
[1747453033199,4.02414486,2485.0,2484.9,17.367]
[1747453033519,4.02414486,2485.0,2484.9,25.249]
[1747453034436,2.9964479,2485.6,2484.9,25.249]
[1747453034589,4.02400283,2485.1,2484.9,25.249]
[1747453034896,4.0238579,2485.2,2484.9,25.249]
[1747453035092,4.02409493,2485.1,2484.9,25.249]
[1747453035293,4.02409493,2485.1,2484.9,27.7739]
[1747453035522,4.02414486,2485.0,2484.9,17.367]